bitfinex/quotes_SOLUSD_20250731
["timestamp","ask_amount","ask_price","bid_price","bid_amount"]
[1753978277455,147.6,177.42,177.41,6.7311238]
[1753978277656,16.936235,177.49,177.41,6.7311238]
[1753978277834,57.116235,177.49,177.48,6.0111238]
[1753978278151,4.45138708,177.49,177.48,6.0111238]
[1753978278657,6.31412023,177.49,177.48,6.0111238]
[1753978278845,147.6,177.5,177.48,6.0111238]
[1753978279040,6.31234915,177.55,177.49,6.7311238]
[1753978279373,6.31234915,177.55,177.54,6.0111238]
[1753978279374,0.68,177.55,177.54,6.0111238]
[1753978279529,3.77169678,177.55,177.54,6.0111238]
[1753978279835,16.929545,177.57,177.54,6.7311238]
[1753978280035,40.26,177.59,177.56,6.0111238]
[1753978280256,40.26,177.59,177.58,6.0111238]
[1753978280257,46.57094768,177.59,177.58,6.0111238]
[1753978280833,40.94,177.59,177.58,6.0111238]
[1753978281051,46.57094768,177.59,177.58,9.7782623]
[1753978281234,50.3421915,177.59,177.58,9.7782623]
[1753978281559,50.34257683,177.59,177.56,9.7782623]
[1753978281751,5.63158191,177.57,177.56,9.7782623]
[1753978281929,45.87158191,177.57,177.5,0.72]
[1753978282131,0.68,177.56,177.53,9.7782623]
[1753978282332,40.92,177.55,177.53,9.7782623]
[1753978282557,40.24,177.55,177.52,9.7782623]
[1753978282756,0.68,177.54,177.52,9.7782623]
[1753978283052,40.24,177.56,177.53,9.7782623]
[1753978283267,156.85209337,177.6,177.55,9.7782623]
[1753978283438,190.78869516,177.6,177.59,9.7782623]
[1753978283639,148.28,177.6,177.57,9.7782623]
[1753978283957,0.68,177.59,177.58,9.7782623]
[1753978284263,147.6,177.6,177.58,9.7782623]
[1753978284429,147.6,177.6,177.56,0.72]
[1753978284634,147.6,177.6,177.59,9.7782623]
[1753978284836,147.6,177.6,177.59,10.4982623]
[1753978285558,147.6,177.6,177.59,9.7782623]
[1753978286057,147.6,177.6,177.55,0.72]
[1753978286263,153.23068111,177.6,177.52,26.5633168]
[1753978286564,153.91068111,177.6,177.57,9.7782623]
[1753978286738,0.68,177.59,177.57,9.7782623]
[1753978287244,156.16154804,177.6,177.57,9.7782623]
[1753978287444,156.84154804,177.6,177.57,9.7782623]
[1753978287657,153.23068111,177.6,177.59,9.7782623]
[1753978287959,147.6,177.6,177.59,9.7782623]
[1753978288360,153.23063063,177.6,177.59,9.7782623]
[1753978288782,153.91063063,177.6,177.58,9.7782623]
[1753978289544,153.91063063,177.6,177.52,0.72]
[1753978289545,50.6982623,177.59,177.52,0.72]
[1753978289774,40.92,177.59,177.55,9.7782623]
[1753978289973,182.16156839,177.6,177.57,9.7782623]
[1753978290268,40.22,177.59,177.57,9.7782623]
[1753978290561,40.9,177.59,177.57,9.7782623]
[1753978290743,0.68,177.58,177.56,9.7782623]
[1753978290940,6.31158191,177.57,177.54,9.7782623]
[1753978291145,0.68,177.56,177.53,9.7782623]
[1753978291566,0.68,177.59,177.55,9.7782623]
[1753978291751,40.22,177.59,177.58,9.7782623]
[1753978291952,40.22,177.59,177.57,9.7782623]
[1753978292473,40.9,177.59,177.57,9.7782623]
[1753978292768,46.53113611,177.59,177.57,9.7782623]
[1753978293373,40.22,177.59,177.57,9.7782623]
[1753978293547,5.63102748,177.59,177.57,9.7782623]
[1753978293747,74.80162687,177.6,177.57,9.7782623]
[1753978294182,69.17093776,177.6,177.58,9.7782623]
[1753978294472,66.24,177.6,177.58,9.7782623]
[1753978295050,66.22,177.6,177.58,9.7782623]
[1753978295258,66.22,177.6,177.57,9.7782623]
[1753978295456,0.69,177.59,177.57,9.7782623]
[1753978296773,0.69,177.58,177.55,9.7782623]
[1753978297084,46.52120491,177.59,177.56,9.7782623]
[1753978298077,45.83120491,177.59,177.57,9.7782623]
[1753978298260,45.83120491,177.59,177.56,9.7782623]
[1753978298584,2.93055857,177.61,177.57,9.7782623]
[1753978298756,30.86919097,177.62,177.57,9.7782623]
[1753978298757,45.81063063,177.6,177.59,9.7782623]
[1753978299076,45.81063063,177.6,177.58,9.7782623]
[1753978299264,0.69,177.59,177.56,9.7782623]
[1753978299478,9.7782623,177.57,177.52,9.7782623]
[1753978299650,198.2482623,177.56,177.51,9.7782623]
[1753978299848,0.69,177.55,177.51,9.7782623]
[1753978300459,40.91,177.54,177.51,9.7782623]
[1753978300665,0.69,177.53,177.51,9.7782623]
[1753978300974,40.22,177.54,177.51,10.4882623]
[1753978301383,45.83225192,177.55,177.52,9.7782623]
[1753978302378,45.83225192,177.55,177.53,9.7782623]
[1753978302584,147.6,177.56,177.54,10.4882623]
[1753978302775,147.6,177.56,177.54,9.7782623]
[1753978302973,147.6,177.56,177.55,9.7782623]
[1753978303562,148.29,177.56,177.55,9.7782623]
[1753978304771,147.6,177.56,177.55,9.7782623]
[1753978305489,147.6,177.56,177.55,16.12047857]
[1753978307188,31.62978568,177.63,177.55,16.12047857]
[1753978307189,147.6,177.63,177.55,30.20101926]
[1753978307397,40.87,177.66,177.62,9.7782623]
[1753978307565,40.18,177.66,177.65,9.7782623]
[1753978307765,40.87,177.66,177.65,9.7782623]
[1753978307991,0.69,177.66,177.62,0.71]
[1753978308294,0.69,177.66,177.65,9.7782623]
[1753978308469,6.31872903,177.66,177.65,9.7782623]
[1753978309795,6.31872903,177.66,177.6,6.34052318]
[1753978310098,6.31872903,177.66,177.65,9.7782623]
[1753978310273,6.31872903,177.66,177.6,6.34052318]
[1753978310474,6.31872903,177.66,177.65,9.7782623]
[1753978311294,5.62872903,177.66,177.65,9.7782623]
[1753978311589,147.6,177.67,177.65,9.7782623]
[1753978311774,147.6,177.67,177.66,9.7782623]
[1753978311969,0.69,177.7,177.66,10.4882623]
[1753978312185,40.85,177.7,177.68,9.7782623]
[1753978312687,0.69,177.69,177.67,9.7782623]
[1753978313198,71.7875064,177.7,177.68,9.7782623]
[1753978313770,3.62556063,177.72,177.69,9.7782623]
[1753978314003,40.16,177.71,177.69,9.7782623]
[1753978314300,10.4682623,177.7,177.66,9.7782623]
[1753978314505,40.85,177.69,177.65,9.7782623]
[1753978314793,0.69,177.68,177.64,9.7782623]
[1753978315098,6.31860195,177.67,177.64,9.7782623]
[1753978315306,0.69,177.66,177.61,26.0]
[1753978315473,0.69,177.66,177.64,9.7782623]
[1753978316477,0.69,177.65,177.62,9.7782623]
[1753978316682,0.69,177.64,177.61,9.7782623]
[1753978317084,5.62967967,177.63,177.61,9.7782623]
[1753978317286,5.62967967,177.63,177.59,0.71]
[1753978317287,5.62967967,177.63,177.62,9.7782623]
[1753978318315,5.62967967,177.63,177.59,0.71]
[1753978318602,5.62967967,177.63,177.62,9.7782623]
[1753978318985,5.62967967,177.63,177.59,0.71]
[1753978319184,5.62967967,177.63,177.62,9.7782623]
[1753978319609,6.31945811,177.64,177.61,9.7782623]
[1753978320284,6.31945811,177.64,177.62,9.7782623]
[1753978320707,6.31945811,177.64,177.58,0.71]
[1753978321021,6.31945811,177.64,177.6,9.7782623]
[1753978321188,6.31945811,177.64,177.61,9.7782623]
[1753978321384,3.77288575,177.63,177.58,0.71]
[1753978321721,148.29,177.63,177.6,9.7782623]
[1753978322006,148.29,177.63,177.61,9.7782623]
[1753978322806,147.6,177.63,177.62,9.7782623]
[1753978322996,147.6,177.63,177.62,10.4882623]
[1753978323621,147.6,177.63,177.62,9.7782623]
[1753978324719,147.6,177.62,177.59,9.7782623]
[1753978325018,3.77839143,177.61,177.59,9.7782623]
[1753978325516,147.6,177.62,177.6,9.7782623]
[1753978326096,153.23002848,177.62,177.6,9.7782623]
[1753978326299,4.4391538,177.61,177.53,45.81278451]
[1753978326518,148.26,177.6,177.56,9.7782623]
[1753978326689,4.4391538,177.59,177.57,9.7782623]
[1753978326994,3.7791538,177.59,177.58,9.7782623]
[1753978328109,3.7791538,177.59,177.54,5.63248027]
[1753978328110,153.23086275,177.6,177.56,0.69]
[1753978328299,3.78025741,177.59,177.57,9.7782623]
[1753978329214,3.78025741,177.59,177.58,9.7782623]
[1753978329721,3.78025741,177.59,177.58,10.4682623]
[1753978330391,147.6,177.6,177.58,10.4682623]
[1753978330712,147.6,177.6,177.59,10.4682623]
[1753978330900,151.38042262,177.6,177.59,9.7782623]
[1753978331593,157.01105325,177.6,177.58,9.7782623]
[1753978331800,153.23063063,177.6,177.54,0.69]
[1753978332119,153.23063063,177.6,177.57,9.7782623]
[1753978332315,153.23063063,177.6,177.58,9.7782623]
[1753978334111,147.6,177.6,177.59,9.7782623]
[1753978334319,147.6,177.6,177.59,10.4682623]
[1753978334491,147.6,177.6,177.59,9.7782623]
[1753978334902,147.6,177.6,177.59,5.9987903]
[1753978336128,147.6,177.6,177.59,12.31973798]
[1753978336297,23.30582785,177.7,177.59,12.31973798]
[1753978336298,5.62904587,177.65,177.59,6.6887903]
[1753978336498,147.6,177.64,177.63,5.9987903]
[1753978336699,151.38076652,177.64,177.63,5.9987903]
[1753978337213,147.6,177.64,177.63,5.9987903]
[1753978337394,151.38040389,177.64,177.63,5.9987903]
[1753978337710,147.6,177.64,177.63,5.9987903]
[1753978339024,153.22936275,177.64,177.63,5.9987903]
[1753978339608,147.6,177.64,177.63,5.9987903]
[1753978340008,153.88936275,177.64,177.58,0.69]
[1753978340217,3.78084143,177.63,177.62,5.9987903]
[1753978340406,4.44084143,177.63,177.62,5.9987903]
[1753978340608,153.22936275,177.64,177.62,5.9987903]
[1753978340609,147.6,177.64,177.62,5.9987903]
[1753978340925,153.22936275,177.64,177.62,5.9987903]
[1753978341423,0.66,177.63,177.57,0.69]
[1753978341626,44.48124496,177.63,177.59,5.9987903]
[1753978341928,4.44124496,177.62,177.6,5.9987903]
[1753978342106,0.66,177.62,177.6,5.9987903]
[1753978342304,0.66,177.61,177.57,5.9987903]
[1753978342523,0.66,177.6,177.57,5.9987903]
[1753978343035,0.66,177.6,177.58,5.9987903]
[1753978343437,5.62999662,177.62,177.59,5.9987903]
[1753978343738,5.62999662,177.62,177.52,19.71608832]
[1753978343739,3.78189384,177.62,177.6,5.9987903]
[1753978343945,173.6,177.64,177.61,6.6887903]
[1753978343946,147.6,177.64,177.61,6.6887903]
[1753978344236,153.22936275,177.64,177.63,5.9987903]
[1753978344440,157.67055597,177.64,177.61,5.9987903]
[1753978344647,4.44119322,177.63,177.56,6.32178973]
[1753978344938,4.44119322,177.63,177.6,5.9987903]
[1753978345147,0.66,177.62,177.6,5.9987903]
[1753978346331,0.66,177.61,177.54,26.0]
[1753978346543,0.66,177.61,177.57,5.9987903]
[1753978346843,0.66,177.6,177.57,5.9987903]
[1753978347151,0.66,177.59,177.56,5.9987903]
[1753978347653,0.66,177.59,177.55,0.69]
[1753978347946,0.66,177.59,177.56,5.9987903]
[1753978348118,3.78119322,177.6,177.58,5.9987903]
[1753978348542,3.78119322,177.6,177.58,6.6887903]
[1753978348737,3.78119322,177.6,177.59,5.9987903]
[1753978348950,5.6304555,177.61,177.59,5.9987903]
[1753978349134,3.78119322,177.62,177.6,5.9987903]
[1753978349319,3.78119322,177.62,177.61,5.9987903]
[1753978349320,26.0,177.62,177.61,5.9987903]
[1753978349522,29.78119322,177.62,177.61,5.9987903]
[1753978349722,29.78119322,177.62,177.6,5.9987903]
[1753978350041,3.78119322,177.61,177.6,5.9987903]
[1753978350632,9.41150682,177.61,177.59,5.9987903]
[1753978350837,3.78119322,177.61,177.59,5.9987903]
[1753978351352,3.78119322,177.61,177.6,6.6887903]
[1753978351646,3.78119322,177.62,177.6,6.6887903]
[1753978351829,3.78119322,177.63,177.61,6.6887903]
[1753978352022,147.6,177.64,177.62,6.6887903]
[1753978352225,147.6,177.64,177.63,6.6887903]
[1753978352422,151.38783508,177.64,177.63,6.6887903]
[1753978352724,151.38783508,177.64,177.63,5.9987903]
[1753978356838,151.38783508,177.64,177.63,6.6787903]
[1753978358046,151.38783508,177.64,177.63,12.30846997]
[1753978358343,159.90633549,177.7,177.63,12.30846997]
[1753978358654,7.99831312,177.69,177.64,0.68]
[1753978358852,3.78887258,177.68,177.64,0.68]
[1753978359035,3.78887258,177.69,177.64,0.68]
[1753978359230,7.99999998,177.68,177.64,0.68]
[1753978359563,3.78887258,177.67,177.65,0.56290458]
[1753978359737,3.78887258,177.69,177.66,12.6775806]
[1753978359937,3.78887258,177.69,177.68,5.9987903]
[1753978360239,3.78887258,177.69,177.68,6.6787903]
[1753978360853,3.78887258,177.69,177.68,12.30688575]
[1753978361967,147.6,177.75,177.68,12.86969529]
[1753978361968,3.78681632,177.73,177.68,12.86969529]
[1753978362143,152.31032426,177.75,177.72,5.9987903]
[1753978362334,12.86165238,177.74,177.73,5.9987903]
[1753978362535,7.99414036,177.74,177.73,5.9987903]
[1753978362744,3.78662834,177.75,177.73,5.9987903]
[1753978362954,3.78662834,177.75,177.74,5.9987903]
[1753978363272,7.99170117,177.75,177.74,5.9987903]
[1753978364367,3.78662834,177.76,177.74,5.9987903]
[1753978364535,3.78662834,177.76,177.75,5.9987903]
[1753978364730,7.9866095,177.76,177.75,5.9987903]
[1753978365963,4.19998116,177.76,177.75,5.9987903]
[1753978366275,3.78662834,177.76,177.75,5.9987903]
[1753978366437,6.28535346,177.77,177.75,5.9987903]
[1753978367752,5.62535346,177.77,177.71,0.68]
[1753978368067,6.28535346,177.77,177.75,5.9987903]
[1753978368570,6.28535346,177.77,177.71,0.68]
[1753978368738,6.28535346,177.77,177.75,5.9987903]
[1753978369357,6.28535346,177.77,177.76,5.9987903]
[1753978369971,5.62503706,177.78,177.76,5.9987903]
[1753978370139,9.39375687,177.78,177.77,5.9987903]
[1753978370467,10.05375687,177.78,177.77,5.9987903]
[1753978370641,10.05375687,177.78,177.73,0.68]
[1753978370836,5.62503706,177.78,177.76,5.9987903]
[1753978371041,0.66,177.77,177.76,5.9987903]
[1753978371951,6.2852461,177.77,177.76,5.9987903]
[1753978373637,2.9342851,177.79,177.76,5.9987903]
[1753978373860,0.66,177.82,177.78,5.9987903]
[1753978374061,0.66,177.82,177.79,5.9987903]
[1753978374365,0.66,177.81,177.79,5.9987903]
[1753978374566,0.66,177.8,177.79,5.9987903]
[1753978374862,5.62366437,177.82,177.79,5.9987903]
[1753978375167,9.38627676,177.82,177.8,5.9987903]
[1753978375539,9.38627676,177.82,177.79,5.9987903]
[1753978375746,0.66,177.81,177.79,5.9987903]
[1753978376174,6.28406906,177.81,177.79,5.9987903]
[1753978376862,6.28406906,177.81,177.8,5.9987903]
[1753978377163,10.04437681,177.81,177.77,5.9987903]
[1753978377354,4.42041047,177.8,177.76,5.9987903]
[1753978377560,5.62406906,177.81,177.79,5.9987903]
[1753978377866,45.54406906,177.81,177.79,5.9987903]
[1753978378181,5.62376355,177.82,177.8,5.9987903]
[1753978378469,10.99218431,177.88,177.81,12.6775806]
[1753978378650,5.62186005,177.88,177.87,5.9987903]
[1753978378845,6.28186005,177.88,177.87,5.9987903]
[1753978379049,10.0393934,177.88,177.86,5.9987903]
[1753978379268,8.55441904,177.89,177.87,5.9987903]
[1753978379561,8.55441904,177.89,177.84,5.9987903]
[1753978379562,2.93286108,177.89,177.88,5.9987903]
[1753978379764,5.62091503,177.91,177.88,5.9987903]
[1753978379969,5.62050359,177.92,177.9,5.9987903]
[1753978380271,36.03404428,177.92,177.87,0.68]
[1753978380484,6.28050359,177.92,177.91,5.9987903]
[1753978380668,6.28050359,177.92,177.9,5.9987903]
[1753978380669,26.0,177.91,177.9,5.9987903]
[1753978381195,26.0,177.91,177.85,0.56227157]
[1753978381346,26.66,177.91,177.88,5.9987903]
[1753978381551,26.0,177.91,177.89,5.9987903]
[1753978381792,26.0,177.91,177.84,11.62180103]
[1753978381793,26.0,177.91,177.9,5.9987903]
[1753978382074,31.62081951,177.91,177.9,5.9987903]
[1753978382274,32.28081951,177.91,177.89,5.9987903]
[1753978382476,32.28081951,177.91,177.88,5.9987903]
[1753978382680,32.28081951,177.91,177.89,5.9987903]
[1753978382883,31.62081951,177.91,177.89,6.6787903]
[1753978383082,5.62057206,177.92,177.9,5.9987903]
[1753978383287,48.51199964,177.94,177.91,5.9987903]
[1753978383488,0.66,177.93,177.89,5.9987903]
[1753978383882,48.51199964,177.94,177.91,5.9987903]
[1753978384202,8.55199964,177.94,177.91,5.9987903]
[1753978384359,5.62015262,177.94,177.91,5.9987903]
[1753978384962,6.6787903,177.93,177.89,5.9987903]
[1753978385165,5.9987903,177.93,177.89,5.9987903]
[1753978385382,12.29894292,177.94,177.9,5.9987903]
[1753978385562,12.29894292,177.94,177.89,6.6587903]
[1753978386081,12.29894292,177.94,177.9,0.66]
[1753978386082,6.30015262,177.94,177.9,0.66]
[1753978386295,6.30015262,177.94,177.91,5.9987903]
[1753978386895,5.62015262,177.94,177.91,5.9987903]
[1753978387062,5.62015262,177.94,177.92,5.9987903]
[1753978387382,5.62015262,177.94,177.91,5.9987903]
[1753978387602,5.62015262,177.94,177.9,0.66]
[1753978387603,5.62015262,177.94,177.9,6.6587903]
[1753978387814,5.62015262,177.94,177.9,5.9987903]
[1753978387999,0.68,177.93,177.89,5.9987903]
[1753978388200,5.62050359,177.92,177.89,5.9987903]
[1753978388490,5.62050359,177.92,177.89,6.6587903]
[1753978388697,5.62050359,177.92,177.9,6.6587903]
[1753978389083,5.61987186,177.94,177.9,6.6587903]
[1753978389399,6.29987186,177.94,177.9,6.6587903]
[1753978389582,147.6,177.93,177.9,6.6587903]
[1753978389771,2.93163234,177.96,177.91,0.66]
[1753978389972,3.73244063,177.99,177.95,5.9987903]
[1753978390196,5.61829316,177.99,177.95,6.6587903]
[1753978390372,5.61829316,177.99,177.96,5.9987903]
[1753978391191,5.61829316,177.99,177.95,0.66]
[1753978391404,0.68,177.98,177.95,5.9987903]
[1753978391980,0.68,177.98,177.93,0.66]
[1753978391981,0.68,177.97,177.94,5.9987903]
[1753978392173,5.9987903,177.95,177.89,0.66]
[1753978392375,5.9987903,177.93,177.89,0.66]
[1753978392576,5.9987903,177.9,177.86,0.66]
[1753978392801,6.6787903,177.89,177.84,0.66]
[1753978392999,31.9987903,177.91,177.86,5.9987903]
[1753978393206,31.9987903,177.91,177.87,0.66]
[1753978393506,5.9987903,177.9,177.85,6.6587903]
[1753978393696,5.62145145,177.89,177.85,6.6587903]
[1753978393896,5.62145145,177.89,177.85,0.66]
[1753978394081,5.62145145,177.89,177.85,6.6587903]
[1753978394572,26.0,177.91,177.87,5.9987903]
[1753978394779,0.68,177.93,177.83,5.62334814]
[1753978394780,26.0,177.93,177.9,5.9987903]
[1753978395103,5.61987186,177.94,177.91,5.9987903]
[1753978395284,5.61963745,177.95,177.92,5.9987903]
[1753978395486,10.03243955,177.95,177.91,6.6587903]
[1753978395810,153.21932256,177.96,177.93,5.9987903]
[1753978395978,5.61932256,177.96,177.94,5.9987903]
[1753978396177,5.61932256,177.96,177.93,6.6587903]
[1753978396382,9.35275115,177.96,177.93,6.6587903]
[1753978396799,5.61932256,177.96,177.93,6.6587903]
[1753978397102,5.61932256,177.96,177.93,10.39790527]
[1753978397302,9.35245588,177.97,177.93,10.39790527]
[1753978397608,9.35245588,177.97,177.94,9.73790527]
[1753978397775,9.35245588,177.97,177.93,9.73790527]
[1753978397981,10.03245588,177.97,177.93,9.73790527]
[1753978398278,6.29902729,177.97,177.93,9.73790527]
[1753978398476,3.73438049,177.96,177.93,9.73790527]
[1753978398790,3.73438049,177.96,177.93,10.39790527]
[1753978398996,9.35340778,177.97,177.94,9.73790527]
[1753978399303,9.35340778,177.97,177.94,10.39790527]
[1753978399493,9.35340778,177.97,177.95,9.73790527]
[1753978400001,9.35340778,177.97,177.94,9.73790527]
[1753978400203,10.03340778,177.97,177.94,9.73790527]
[1753978400396,3.73438049,177.96,177.94,9.73790527]
[1753978400586,3.73438049,177.96,177.93,9.73790527]
[1753978400986,3.73438049,177.96,177.94,9.73790527]
[1753978401204,9.35376917,177.96,177.94,9.73790527]
[1753978402189,9.35376917,177.96,177.93,9.73790527]
[1753978402512,9.35376917,177.96,177.94,9.73790527]
[1753978403804,9.35376917,177.96,177.94,10.39790527]
[1753978404005,152.31032426,178.01,177.95,10.39790527]
[1753978404201,7.89821072,178.0,177.99,9.73790527]
[1753978404400,3.74125389,178.0,177.99,9.73790527]
[1753978404600,4.42125389,178.02,177.99,9.73790527]
[1753978404914,10.45547187,178.01,177.98,9.73790527]
[1753978405210,4.42125389,178.0,177.97,9.73790527]
[1753978405413,4.42125389,178.0,177.91,0.56208195]
[1753978405414,9.73790527,177.98,177.91,0.56208195]
[1753978405708,15.35714554,177.96,177.91,9.73790527]
[1753978405914,9.73790527,177.94,177.89,10.39790527]
[1753978406083,14.15915916,177.93,177.89,0.66]
[1753978406283,0.68,177.93,177.89,0.66]
[1753978406518,10.41790527,177.93,177.89,0.66]
[1753978406687,3.74461938,177.92,177.89,0.66]
[1753978406891,3.74461938,177.92,177.89,9.73790527]
[1753978407090,9.73790527,177.94,177.9,0.66]
[1753978407292,3.74612614,177.93,177.9,0.66]
[1753978407497,5.62050359,177.92,177.9,0.66]
[1753978407799,5.62050359,177.92,177.9,10.39790527]
[1753978408197,9.36640259,177.93,177.9,10.39790527]
[1753978408415,3.74612614,177.92,177.91,0.66]
[1753978408594,5.62027645,177.93,177.91,0.66]
[1753978408788,3.74924747,177.94,177.92,10.39790527]
[1753978408994,9.3685205,177.96,177.93,10.39790527]
[1753978409208,8.59474326,177.95,177.91,9.73790527]
[1753978409424,4.42924747,177.95,177.91,9.73790527]
[1753978409591,5.61987186,177.94,177.9,0.66]
[1753978409790,9.36911933,177.94,177.9,9.73790527]
[1753978409998,9.36911933,177.94,177.92,9.73790527]
[1753978410209,3.74924747,177.93,177.91,0.66]
[1753978410411,3.74924747,177.93,177.92,9.73790527]
[1753978410699,5.61987186,177.94,177.91,0.66]
[1753978410915,3.74924747,177.95,177.92,0.66]
[1753978411105,7.36027122,177.97,177.94,9.73790527]
[1753978411319,4.16868753,177.96,177.93,0.66]
[1753978411521,7.917935,177.96,177.94,9.73790527]
[1753978411837,3.74924747,177.96,177.94,9.73790527]
[1753978412004,3.74924747,177.97,177.95,10.39790527]
[1753978412207,9.36824419,177.97,177.95,10.39790527]
[1753978412423,9.36824419,177.97,177.95,9.73790527]
[1753978413400,3.74924747,177.97,177.95,9.73790527]
[1753978413600,3.74924747,177.97,177.95,10.39790527]
[1753978414101,3.74924747,177.97,177.96,9.73790527]
[1753978414420,7.92339821,177.97,177.96,10.41790527]
[1753978414729,5.61827838,178.0,177.96,10.41790527]
[1753978414901,5.61827838,178.0,177.98,9.73790527]
[1753978415222,6.31827838,178.0,177.98,9.73790527]
[1753978415412,3.75614682,177.99,177.98,10.41790527]
[1753978415618,5.61827838,178.0,177.98,10.41790527]
[1753978415619,9.3744252,178.0,177.98,10.41790527]
[1753978415821,9.3744252,178.0,177.99,9.73790527]
[1753978416512,3.75614682,178.0,177.99,9.73790527]
[1753978416707,9.37356105,178.02,177.99,9.73790527]
[1753978416926,3.75614682,178.01,177.99,0.68]
[1753978417106,3.75614682,178.02,178.0,0.68]
[1753978417309,3.75614682,178.03,178.01,0.68]
[1753978417514,5.61713007,178.03,178.01,0.68]
[1753978417720,5.61713007,178.03,177.97,0.56189245]
[1753978417922,5.61713007,178.03,177.99,0.68]
[1753978418121,10.07327689,178.03,178.01,9.73790527]
[1753978418434,3.75614682,178.02,178.01,9.73790527]
[1753978418731,10.07349318,178.02,177.99,9.73790527]
[1753978418906,6.31734636,178.02,177.99,9.73790527]
[1753978419107,6.31734636,178.02,178.0,9.73790527]
[1753978419312,5.61734636,178.02,178.0,9.73790527]
[1753978419517,5.61734636,178.02,178.01,9.73790527]
[1753978419819,5.61734636,178.02,177.98,0.68]
[1753978420023,5.61734636,178.02,178.01,9.73790527]
[1753978420224,5.61734636,178.02,178.0,9.73790527]
[1753978420729,6.31734636,178.02,178.0,9.73790527]
[1753978420923,6.31734636,178.02,178.0,5.97086512]
[1753978421320,34.54579071,178.06,178.01,6.65086512]
[1753978421522,3.76348323,178.05,178.04,5.97086512]
[1753978421725,3.76348323,178.05,178.03,5.97086512]
[1753978422413,3.76348323,178.06,178.04,6.65086512]
[1753978422610,3.76348323,178.06,178.05,5.97086512]
[1753978422806,3.76348323,178.07,178.05,6.65086512]
[1753978423010,9.37870512,178.09,178.06,6.65086512]
[1753978423212,4.46221585,178.08,178.03,0.68]
[1753978423445,4.46221585,178.08,178.05,5.97086512]
[1753978423611,3.76221585,178.08,178.06,5.97086512]
[1753978423812,3.76221585,178.08,178.05,5.97086512]
[1753978424213,0.7,178.07,178.03,0.68]
[1753978424412,0.7,178.07,178.03,5.97086512]
[1753978424638,3.76221585,178.08,178.06,5.97086512]
[1753978424831,9.37743774,178.09,178.06,5.97086512]
[1753978425014,10.07743774,178.09,178.05,5.97086512]
[1753978425210,4.46221585,178.08,178.04,5.97086512]
[1753978425432,0.7,178.07,178.04,5.97086512]
[1753978425644,0.7,178.06,178.03,5.97086512]
[1753978426016,0.7,178.05,178.0,1.24179775]
[1753978426215,0.7,178.05,178.02,5.97086512]
[1753978426817,6.31645142,178.05,178.02,5.97086512]
[1753978427018,5.61645142,178.05,178.02,6.65086512]
[1753978427424,9.37708337,178.06,178.04,5.97086512]
[1753978427737,5.61618934,178.06,178.04,5.97086512]
[1753978428243,9.3762128,178.06,178.04,5.97086512]
[1753978428435,5.61618934,178.06,178.04,5.97086512]
[1753978429047,6.31482313,178.1,178.05,6.65086512]
[1753978429225,4.45890516,178.09,178.05,6.65086512]
[1753978429426,10.42977028,178.09,178.05,5.97086512]
[1753978429625,4.45890516,178.08,178.05,5.97086512]
[1753978430039,3.75890516,178.08,178.06,0.68]
[1753978430239,15.34459341,178.1,178.06,6.65086512]
[1753978430434,3.75890516,178.09,178.06,6.65086512]
[1753978430636,9.37425148,178.09,178.06,6.65086512]
[1753978432028,3.75890516,178.09,178.08,5.97086512]
[1753978432226,12.30198449,178.12,178.08,6.65086512]
[1753978432534,0.7,178.13,178.11,5.97086512]
[1753978432535,5.61390022,178.13,178.11,5.97086512]
[1753978432856,9.36801655,178.13,178.09,6.65086512]
[1753978433157,10.06801655,178.13,178.09,0.68]
[1753978433358,3.75411633,178.12,178.09,6.65086512]
[1753978433523,3.75411633,178.12,178.09,0.68]
[1753978433725,6.31390022,178.13,178.09,0.68]
[1753978433926,6.31390022,178.13,178.09,6.65086512]
[1753978434131,0.7,178.12,178.08,5.97086512]
[1753978434534,5.61390022,178.13,178.09,6.65086512]
[1753978434834,15.33636226,178.13,178.08,5.97086512]
[1753978435155,0.7,178.12,178.08,6.65086512]
[1753978435531,0.7,178.12,178.08,0.68]
[1753978435744,25.6194591,178.13,178.08,5.97086512]
[1753978435943,0.7,178.11,178.07,5.97086512]
[1753978436132,6.67086512,178.1,178.05,6.65086512]
[1753978436335,6.67086512,178.09,178.04,5.97086512]
[1753978436545,5.61513841,178.09,178.05,6.65086512]
[1753978436749,0.7,178.08,178.03,0.68]
[1753978436951,0.7,178.08,178.05,5.97086512]
[1753978437252,0.7,178.08,178.02,26.68]
[1753978437635,5.97086512,178.07,178.02,6.65086512]